fUST/lending_fUST_20251216
["ID","MTS","AMOUNT","RATE_DAILY","PERIOD"]
[398563450,1765830693088,500.0,9.849e-05,2]
[398563451,1765830693161,500.0,9.849e-05,2]
[398563452,1765830693254,305.00343242,9.849e-05,2]
[398563453,1765830693354,500.0,9.849e-05,2]
[398563454,1765830693436,500.0,9.849e-05,2]
[398563455,1765830693477,500.0,9.849e-05,2]
[398563456,1765830693514,500.0,9.849e-05,2]
[398563457,1765830693545,500.0,9.849e-05,2]
[398563458,1765830693593,500.0,9.849e-05,2]
[398563459,1765830693623,500.0,9.849e-05,2]
[398563460,1765830693663,500.0,9.849e-05,2]
[398563461,1765830693693,379.18890735,9.849e-05,2]
[398563463,1765830727191,-179.16449368,9.848e-05,2]
[398563464,1765830730106,-120.83550632,9.848e-05,2]
[398563465,1765830730131,-171.89959443,9.849e-05,2]
[398563466,1765830732427,-189.3361304,9.849e-05,2]
[398563467,1765830749678,150.0,7.463e-05,2]
[398563468,1765830750073,299.71,8.141e-05,2]
[398563469,1765830750481,449.56,8.82e-05,2]
[398563470,1765830750870,599.42,9.498e-05,2]
[398563471,1765830759970,182.76355,9.664e-05,2]
[398563472,1765830760234,182.76355,9.664e-05,120]
[398563473,1765830829342,150.7,7.755e-05,2]
[398563474,1765830829568,301.39,8.46e-05,2]
[398563475,1765830829982,452.09,9.165e-05,2]
[398563476,1765830846383,-1200.0,9.848e-05,2]
[398563477,1765830846414,-500.0,9.849e-05,2]
[398563478,1765830880630,690.6127524,9.337e-05,2]
[398563479,1765830909830,150.0,7.404e-05,2]
[398563480,1765830910265,278.37,8.077e-05,2]
[398563481,1765830910744,417.56,8.75e-05,2]
[398563482,1765830911098,556.75,9.423e-05,2]
[398563483,1765830988145,150.0,8.624e-05,2]
[398563484,1765830988543,242.67,9.407e-05,2]
[398563485,1765831020585,449.33829185,9.446e-05,2]
[398563486,1765831021130,449.33829185,9.655e-05,2]
[398563487,1765831027304,-449.33829185,9.864e-05,2]
[398563488,1765831067156,150.0,7.399e-05,2]
[398563489,1765831067544,232.75,8.072e-05,2]
[398563490,1765831067956,349.12,8.745e-05,2]
[398563491,1765831068936,465.49,9.417e-05,2]
[398563492,1765831081142,290.86,9.915e-05,2]
[398563493,1765831115100,308.66562649,0.0001,4]
[398563494,1765831139855,4231.3510014,9.12e-05,2]
[398563495,1765831146348,150.0,7.405e-05,2]
[398563496,1765831146576,202.27,8.078e-05,2]
[398563497,1765831146990,303.4,8.751e-05,2]
[398563498,1765831161961,404.53,9.424e-05,2]
[398563499,1765831251503,150.0,7.415e-05,2]
[398563500,1765831251931,175.28,8.089e-05,2]
[398563501,1765831252324,262.92,8.763e-05,2]
[398563502,1765831252708,350.56,9.437e-05,2]
[398563511,1765831331346,150.0,7.408e-05,2]
[398563512,1765831331661,151.38,8.081e-05,2]
[398563513,1765831332334,227.08,8.754e-05,2]
[398563514,1765831332501,302.77,9.428e-05,2]
[398563515,1765831360982,1395.0922793,9.043e-05,2]
[398563517,1765831409458,150.0,7.386e-05,2]
[398563518,1765831409877,150.0,8.057e-05,2]
[398563519,1765831410281,195.34,8.729e-05,2]
[398563520,1765831410688,260.45,9.4e-05,2]
[398563522,1765831422680,-560.0,9.967e-05,2]
[398563523,1765831486358,150.0,7.407e-05,2]
[398563524,1765831486729,150.0,8.081e-05,2]
[398563525,1765831487135,166.48,8.754e-05,2]
[398563526,1765831487629,221.97,9.428e-05,2]
[398563527,1765831562767,150.0,8.609e-05,2]
[398563528,1765831563016,150.0,9.391e-05,2]
[398563529,1765831571902,-272.67619439,9.984e-05,2]
[398563530,1765831571930,-167.81,0.0001,2]
[398563531,1765831571957,-300.0,0.00010039,2]
[398563532,1765831571984,-300.0,0.00010039,2]
[398563533,1765831572012,-300.0,0.00010039,2]
[398563534,1765831572040,-1200.0,0.00010039,2]
[398563535,1765831572067,-300.0,0.00010039,2]
[398563536,1765831572096,-500.0,0.0001004,2]
[398563537,1765831572124,-500.0,0.0001004,2]
[398563538,1765831572153,-500.0,0.0001004,2]
[398563539,1765831572440,-500.0,0.0001004,2]
[398563540,1765831573182,-500.0,0.0001004,2]
[398563541,1765831573211,-500.0,0.0001004,2]
[398563542,1765831573238,-500.0,0.0001004,2]
[398563543,1765831573270,-500.0,0.0001004,2]
[398563544,1765831573305,-500.0,0.0001004,2]
[398563545,1765831573335,-500.0,0.0001004,2]
[398563546,1765831573364,-500.0,0.0001004,2]
[398563547,1765831573395,-500.0,0.0001004,2]
[398563548,1765831573424,-500.0,0.0001004,2]
[398563549,1765831573456,-500.0,0.0001004,2]
[398563550,1765831573579,-500.0,0.0001004,2]
[398563551,1765831573613,-500.0,0.0001004,2]
[398563552,1765831573643,-500.0,0.0001004,2]
[398563553,1765831573672,-500.0,0.0001004,2]
[398563554,1765831573705,-500.0,0.0001004,2]
[398563555,1765831573734,-500.0,0.0001004,2]
[398563556,1765831573766,-500.0,0.0001004,2]
[398563557,1765831573794,-500.0,0.0001004,2]
[398563558,1765831573823,-500.0,0.0001004,2]
[398563559,1765831573851,-500.0,0.0001004,2]
[398563560,1765831583446,-500.0,0.0001004,2]
[398563561,1765831583474,-577.34535449,0.0001004,2]
[398563562,1765831583504,-500.0,0.0001004,2]
[398563563,1765831583533,-500.0,0.0001004,2]
[398563564,1765831583562,-556.59351708,0.0001004,2]
[398563565,1765831583592,-500.0,0.0001004,2]
[398563566,1765831583627,-500.0,0.0001004,2]
[398563567,1765831583656,-500.0,0.0001004,2]
[398563568,1765831583685,-226.06919856,0.0001004,2]
[398563569,1765831583715,-500.0,0.0001004,2]
[398563570,1765831592269,-500.0,0.0001004,2]
[398563571,1765831592298,-500.0,0.0001004,2]
[398563572,1765831592327,-500.0,0.0001004,2]
[398563573,1765831592356,-500.0,0.0001004,2]
[398563574,1765831592385,-500.0,0.0001004,2]
[398563575,1765831592414,-500.0,0.0001004,2]
[398563576,1765831592443,-500.0,0.0001004,2]
[398563577,1765831592471,-500.0,0.0001004,2]
[398563578,1765831592498,-500.0,0.0001004,2]
[398563579,1765831592526,-153.57112298,0.0001004,2]
[398563580,1765831592556,-192.86775404,0.0001004,2]
[398563581,1765831592943,-307.13224596,0.0001004,2]
[398563582,1765831592972,-500.0,0.0001004,2]
[398563583,1765831593001,-500.0,0.0001004,2]
[398563584,1765831593029,-500.0,0.0001004,2]
[398563585,1765831593059,-500.0,0.0001004,2]
[398563586,1765831593087,-557.0,0.0001004,2]
[398563587,1765831610830,-170.56,0.0001,2]
[398563588,1765831611572,-9117.07631497,0.0001004,2]
[398563589,1765831619680,-10000.01,0.0001004,2]
[398563590,1765831619875,-2400.93239139,0.0001004,2]
[398563591,1765831619918,-504.59572023,0.00010041,2]
[398563592,1765831629025,200.1379534,9.502e-05,2]
[398563593,1765831638628,150.0,7.566e-05,2]
[398563594,1765831639172,150.0,8.254e-05,2]
[398563595,1765831639570,150.0,8.941e-05,2]
[398563596,1765831640234,177.21,9.629e-05,2]
[398563597,1765831643139,-255.37519322,0.00010044,2]
[398563598,1765831658367,1147.85709323,9.543e-05,2]
[398563599,1765831659034,1147.85709323,9.686e-05,2]
[398563600,1765831659696,1065.8916369,9.829e-05,2]
[398563601,1765831672940,-81.96545633,9.829e-05,2]
[398563602,1765831672971,-1147.85709323,9.972e-05,2]
[398563603,1765831673000,-230.8161505,0.00010039,2]
[398563604,1765831673029,-636.22991095,0.00010039,2]
[398563605,1765831673059,-500.0,0.00010039,2]
[398563606,1765831673090,-500.0,0.00010039,2]
[398563607,1765831673121,-517.06345811,0.00010039,2]
[398563608,1765831673149,-44.62480678,0.00010044,2]
[398563609,1765831673180,-300.0,0.00010045,2]
[398563610,1765831673212,-300.0,0.00010045,2]
[398563611,1765831673243,-300.0,0.00010045,2]
[398563612,1765831673273,-300.0,0.00010045,2]
[398563613,1765831673461,-300.0,0.00010045,2]
[398563614,1765831673493,-300.0,0.00010045,2]
[398563615,1765831673524,-300.0,0.00010045,2]
[398563616,1765831673557,-300.0,0.00010045,2]
[398563617,1765831673589,-300.0,0.00010045,2]
[398563618,1765831673620,-300.0,0.00010045,2]
[398563619,1765831673661,-300.0,0.00010045,2]
[398563620,1765831673720,-300.0,0.00010045,2]
[398563621,1765831673767,-300.0,0.00010045,2]
[398563622,1765831673799,-300.0,0.00010045,2]
[398563623,1765831673832,-300.0,0.00010045,2]
[398563624,1765831674157,284.06594634,0.00010039,2]
[398563625,1765831712539,150.0,8.456e-05,2]
[398563626,1765831713016,150.0,9.225e-05,2]
[398563627,1765831787363,150.0,8.668e-05,2]
[398563628,1765831787776,150.0,9.456e-05,2]
[398563629,1765831790181,471.5317836,9.5e-05,2]
[398563630,1765831829327,6759.0810216,9.397e-05,2]
[398563649,1765831831652,-642.06375731,9.943e-05,2]
[398563651,1765831831662,-162.95,9.944e-05,2]
[398563654,1765831831671,-53.11497269,9.944e-05,2]
[398563656,1765831831682,-521.01358368,9.944e-05,2]
[398563657,1765831831694,-500.0,9.944e-05,2]
[398563659,1765831831705,-0.41759966,9.944e-05,2]
[398563660,1765831831716,-249.58240034,9.944e-05,2]
[398563662,1765831831726,-500.0,9.944e-05,2]
[398563664,1765831831736,-250.0,9.944e-05,2]
[398563666,1765831831745,-500.0,9.944e-05,2]
[398563668,1765831831754,-500.0,9.944e-05,2]
[398563670,1765831831762,-382.65355811,9.944e-05,2]
[398563671,1765831831773,-250.0,9.944e-05,2]
[398563673,1765831831782,-250.0,9.944e-05,2]
[398563675,1765831831791,-250.0,9.944e-05,2]
[398563676,1765831831800,-250.0,9.944e-05,2]
[398563677,1765831831809,-250.0,9.944e-05,2]
[398563678,1765831831818,-250.0,9.944e-05,2]
[398563679,1765831831828,-250.0,9.944e-05,2]
[398563680,1765831831838,-153.99003068,9.944e-05,2]
[398563681,1765831831848,-243.91044517,0.00010006,2]
[398563682,1765831831858,-560.0,0.00010006,2]
[398563683,1765831831868,-1147.85709323,0.00010116,2]
[398563684,1765831831877,-170.56,0.000102,2]
[398563685,1765831831887,-150.0,0.00010244,2]
[398563686,1765831831896,-600.0,0.00010245,2]
[398563687,1765831831905,-1147.85709323,0.00010259,2]
[398563688,1765831831914,-1200.0,0.00010281,2]
[398563689,1765831831923,-1200.0,0.00010398,2]
[398563690,1765831831933,-300.0,0.00010399,2]
[398563691,1765831831942,-300.0,0.00010399,2]
[398563692,1765831831951,-300.0,0.00010399,2]
[398563693,1765831831960,-311.7297256,0.000104,2]
[398563694,1765831831970,-170.56,0.000104,2]
[398563695,1765831831979,-264.5653183,0.000104,2]
[398563696,1765831831988,-476.21757294,0.000104,2]
[398563697,1765831831997,-846.60901856,0.000104,2]
[398563698,1765831832006,-1322.82659149,0.000104,2]
[398563699,1765831832015,-1904.87029175,0.000104,2]
[398563700,1765831832025,-1149.00495033,0.00010402,2]
[398563701,1765831832034,-250.0,0.00010409,2]
[398563702,1765831832043,-300.0,0.00010487,2]
[398563703,1765831832052,-300.0,0.00010487,2]
[398563704,1765831832061,-300.0,0.00010487,2]
[398563705,1765831832070,-300.0,0.00010487,2]
[398563706,1765831832079,-300.0,0.00010487,2]
[398563707,1765831832088,-300.0,0.00010487,2]
[398563708,1765831832097,-300.0,0.00010487,2]
[398563709,1765831832107,-300.0,0.00010487,2]
[398563710,1765831832117,-300.0,0.00010487,2]
[398563711,1765831832126,-300.0,0.00010487,2]
[398563712,1765831832135,-300.0,0.00010487,2]
[398563713,1765831832145,-300.0,0.00010487,2]
[398563714,1765831832154,-300.0,0.00010487,2]
[398563715,1765831832163,-300.0,0.00010487,2]
[398563716,1765831832173,-300.0,0.00010487,2]
[398563717,1765831832182,-595.37131296,0.00010492,2]
[398563718,1765831832191,-500.0,0.00010556,2]
[398563719,1765831832200,-500.0,0.00010556,2]
[398563720,1765831832210,-150.0,0.00010556,2]
[398563721,1765831832219,-150.0,0.00010556,2]
[398563722,1765831832228,-500.0,0.00010556,2]
[398563723,1765831832238,-150.0,0.00010556,2]
[398563724,1765831832247,-151.0,0.00010556,2]
[398563725,1765831832257,-151.0,0.00010556,2]
[398563726,1765831832266,-150.0,0.00010576,2]
[398563727,1765831832275,-150.21000617,0.00010576,2]
[398563728,1765831832284,-150.0,0.00010576,2]
[398563729,1765831832293,-280.89521696,0.00010576,2]
[398563730,1765831832303,-150.0,0.00010576,2]
[398563731,1765831832312,-195.66815899,0.00010633,2]
[398563732,1765831832321,-79067.75258428,0.0001065,2]
[398563740,1765831837745,-267.2226705,9.944e-05,2]
[398563741,1765831837755,-33.42318195,9.944e-05,2]
[398563742,1765831837767,-521.57681805,9.944e-05,2]
[398563743,1765831837776,-670.80933038,0.0001065,2]
[398563744,1765831837787,-1501.08898084,0.0001065,2]
[398563745,1765831837798,-1417.25,0.0001065,2]
[398563746,1765831837809,-25039.08761929,0.0001065,2]
[398563747,1765831837847,-22320.21664996,0.0001065,2]
[398563748,1765831837859,-41359.6723615,0.0001065,2]
[398563749,1765831839815,-1085.31156499,0.0001065,2]
[398563750,1765831839871,-1144.60886202,0.0001065,2]
[398563751,1765831839883,-3886.74185346,0.0001065,2]
[398563752,1765831839932,-1539.3924852,0.0001065,2]
[398563757,1765831842808,-660.46498549,0.0001065,2]
[398563758,1765831842818,-10165.81119226,0.0001065,2]
[398563772,1765831845805,-194874.24225089,0.0001065,2]
[398563773,1765831845816,-9734.29460126,0.0001065,2]
[398563774,1765831860495,150.0,8.463e-05,2]
[398563775,1765831861076,150.0,9.232e-05,2]
[398563776,1765831932698,150.0,7.178e-05,2]
[398563777,1765831933094,150.0,7.83e-05,2]
[398563778,1765831933500,150.0,8.483e-05,2]
[398563779,1765831933936,150.0,9.135e-05,2]
[398563780,1765831934314,150.0,9.788e-05,2]
[398563781,1765832002209,150.0,7.167e-05,2]
[398563782,1765832002612,150.0,7.819e-05,2]
[398563783,1765832003010,150.0,8.47e-05,2]
[398563784,1765832003450,150.0,9.122e-05,2]
[398563785,1765832004187,150.0,9.773e-05,2]
[398563786,1765832069251,150.0,7.166e-05,2]
[398563787,1765832069655,150.0,7.817e-05,2]
[398563790,1765832217857,305.26592635,0.00010027,2]
[398563794,1765832757900,719.052511,9.608e-05,2]
[398563795,1765832800121,-305.26592635,0.00010173,2]
[398563796,1765832800140,-48.08307365,0.00010173,2]
[398563798,1765832883968,203.6,9.99e-05,2]
[398563799,1765832978114,153.01435489,9.803e-05,2]
[398563804,1765833031924,-385.80856207,0.00010173,2]
[398563805,1765833031936,-66.10836428,0.00010173,2]
[398563806,1765833031946,-563.0,0.00010173,2]
[398563807,1765833031955,-156.39819412,0.00010189,2]
[398563808,1765833031964,-261.87821709,0.0001021,2]
[398563809,1765833031973,-153.16736924,0.00010219,2]
[398563810,1765833031982,-300.0,0.00010549,2]
[398563811,1765833031992,-1200.0,0.00010549,2]
[398563812,1765833032001,-500.0,0.00010549,2]
[398563813,1765833032010,-134.10557624,0.00010549,2]
[398563814,1765833032021,-310.88952706,0.00010549,2]
[398563815,1765833032030,-1020.32667037,0.0001055,2]
[398563947,1765833034596,1000.0,0.0001,2]
[398563953,1765833037938,-1566.60158843,0.0001055,2]
[398563954,1765833037949,-49735.82977014,0.0001055,2]
[398564034,1765833040819,-428.87,0.0001055,2]
[398564035,1765833040848,-590.7960981,0.0001055,2]
[398564036,1765833040859,-304.83853935,0.0001055,2]
[398564069,1765833043005,-3043.89712044,0.0001055,2]
[398564071,1765833043018,-3479.66880487,0.0001055,2]
[398564405,1765833045999,-2272.23679476,0.0001055,2]
[398564407,1765833046010,-20820.94937855,0.0001055,2]
[398565095,1765833303857,796.6191456,9.599e-05,2]
[398565101,1765833494833,-521.27,0.00010339,2]
[398565102,1765833494862,-997.3782475,0.00010483,2]
[398565103,1765833494888,-1200.0,0.00010486,2]
[398565104,1765833494918,-300.0,0.00010486,2]
[398565105,1765833494947,-173.64731678,0.00010487,2]
[398565106,1765833494973,-198.45407631,0.00010487,2]
[398565107,1765833494999,-310.08449424,0.00010487,2]
[398565108,1765833495026,-446.07515004,0.00010487,2]
[398565109,1765833495052,-360.67905985,0.00010487,2]
[398565110,1765833495077,-412.20463983,0.00010487,2]
[398565111,1765833495103,-644.06974973,0.00010487,2]
[398565112,1765833495128,-926.53297917,0.00010487,2]
[398565113,1765833495154,-273.75447863,0.00010487,2]
[398565114,1765833495180,-492.75806153,0.00010487,2]
[398565115,1765833495205,-876.0143316,0.00010487,2]
[398565116,1765833495230,-1368.77239313,0.00010487,2]
[398565117,1765833495254,-521.27,0.00010487,2]
[398565118,1765833495279,-997.3782475,0.00010487,2]
[398565119,1765833495295,-452.3839986,0.00010487,2]
[398565120,1765833495304,-747.6160014,0.0001054,2]
[398565121,1765833495319,-287.3974703,0.0001054,2]
[398565122,1765833495328,-12.6025297,0.00010544,2]
[398565123,1765833495349,-173.64731678,0.00010544,2]
[398565124,1765833495367,-198.45407631,0.00010544,2]
[398565125,1765833495389,-189.42463358,0.00010544,2]
[398565126,1765833495399,-120.65986066,0.00010549,2]
[398565127,1765833495409,-190.83671165,0.00010549,2]
[398565128,1765833495418,-255.23843839,0.0001055,2]
[398565129,1765833495446,-360.67905985,0.0001055,2]
[398565130,1765833495457,-412.20463983,0.0001055,2]
[398565131,1765833495480,-644.06974973,0.0001055,2]
[398565132,1765833495494,-926.53297917,0.0001055,2]
[398565133,1765833495513,-273.75447863,0.0001055,2]
[398565134,1765833495731,-492.75806153,0.0001055,2]
[398565135,1765833495800,-876.0143316,0.0001055,2]
[398565136,1765833495825,-1368.77239313,0.0001055,2]
[398565137,1765833495837,-996.61004332,0.0001055,2]
[398565141,1765833722677,-417.016,0.00010339,2]
[398565142,1765833722712,-568.0,0.00010549,2]
[398565143,1765833722749,-1200.0,0.00010549,2]
[398565144,1765833722802,-300.0,0.00010549,2]
[398565145,1765833723274,-35528.27302166,0.0001055,2]
[398565146,1765833751537,-50000.0,0.0001055,2]
[398565148,1765833846207,-827.3128639,0.00010543,2]
[398565149,1765833846235,-300.0,0.00010549,2]
[398565150,1765833846262,-300.0,0.00010549,2]
[398565151,1765833846336,-47145.3742722,0.0001055,2]
[398565152,1765833853352,150.0,7.375e-05,2]
[398565153,1765833853760,150.0,8.046e-05,2]
[398565154,1765833854155,150.0,8.716e-05,2]
[398565155,1765833854552,150.0,9.386e-05,2]
[398565156,1765833854965,170.16,0.00010057,2]
[398565159,1765833920052,-300.0,0.00010449,2]
[398565160,1765833920078,-300.0,0.00010449,2]
[398565161,1765833920103,-300.0,0.00010449,2]
[398565162,1765833920129,-300.0,0.00010449,2]
[398565163,1765833920154,-1200.0,0.00010449,2]
[398565164,1765833920179,-529.48843875,0.00010449,2]
[398565165,1765833920323,-24141.0231225,0.0001045,2]
[398565166,1765833926006,150.0,7.352e-05,2]
[398565167,1765833926411,150.0,8.02e-05,2]
[398565168,1765833926846,150.0,8.689e-05,2]
[398565169,1765833927242,150.0,9.357e-05,2]
[398565170,1765833927703,150.0,0.00010026,2]
[398565172,1765833997250,150.0,7.566e-05,2]
[398565173,1765833997760,150.0,8.253e-05,2]
[398565174,1765833998113,150.0,8.941e-05,2]
[398565175,1765833998555,150.0,9.629e-05,2]
[398565176,1765834025126,-150.0,0.00010317,2]
[398565177,1765834025146,-276.72613758,0.00010447,2]
[398565179,1765834064071,150.0,7.377e-05,2]
[398565180,1765834064497,150.0,8.048e-05,2]
[398565209,1765834232608,-619.84912104,0.00010445,2]
[398565210,1765834232619,-580.15087896,0.00010445,2]
[398565211,1765834232629,-300.0,0.00010446,2]
[398565212,1765834232639,-300.0,0.00010446,2]
[398565213,1765834232648,-173.0,0.00010446,2]
[398565214,1765834232658,-300.0,0.00010446,2]
[398565215,1765834232667,-566.0,0.00010446,2]
[398565216,1765834232677,-300.0,0.00010446,2]
[398565217,1765834232687,-370.64190713,0.00010446,2]
[398565218,1765834232696,-3145.54872568,0.00010447,2]
[398565231,1765834238142,-474.65,0.00010446,2]
[398565232,1765834238154,-25.35,0.00010446,2]
[398565233,1765834238164,-297.11275452,0.00010446,2]
[398565234,1765834238176,-98.35165976,0.00010446,2]
[398565235,1765834238185,-500.0,0.00010446,2]
[398565236,1765834238195,-238.20359666,0.00010446,2]
[398565238,1765834238607,-261.79640334,0.00010446,2]
[398565239,1765834238617,-441.73338889,0.00010446,2]
[398565240,1765834238628,-58.26661111,0.00010446,2]
[398565241,1765834238637,-500.0,0.00010446,2]
[398565242,1765834238646,-500.0,0.00010446,2]
[398565243,1765834238656,-500.0,0.00010446,2]
[398565244,1765834238665,-500.0,0.00010446,2]
[398565245,1765834238674,-340.86279357,0.00010446,2]
[398565246,1765834238683,-500.0,0.00010446,2]
[398565247,1765834238692,-500.0,0.00010446,2]
[398565248,1765834238701,-500.0,0.00010446,2]
[398565249,1765834238710,-500.0,0.00010446,2]
[398565250,1765834238720,-500.0,0.00010446,2]
[398565251,1765834238729,-500.0,0.00010446,2]
[398565252,1765834238738,-500.0,0.00010446,2]
[398565253,1765834238747,-500.0,0.00010446,2]
[398565254,1765834238756,-500.0,0.00010446,2]
[398565255,1765834238765,-500.0,0.00010446,2]
[398565256,1765834238774,-500.0,0.00010446,2]
[398565257,1765834238783,-500.0,0.00010446,2]
[398565258,1765834238792,-500.0,0.00010446,2]
[398565259,1765834238801,-500.0,0.00010446,2]
[398565260,1765834238810,-500.0,0.00010446,2]
[398565261,1765834238820,-500.0,0.00010446,2]
[398565262,1765834238829,-500.0,0.00010446,2]
[398565263,1765834238838,-500.0,0.00010446,2]
[398565264,1765834238847,-500.0,0.00010446,2]
[398565265,1765834238857,-500.0,0.00010446,2]
[398565266,1765834238866,-500.0,0.00010446,2]
[398565267,1765834238876,-500.0,0.00010446,2]
[398565268,1765834238885,-500.0,0.00010446,2]
[398565269,1765834238894,-500.0,0.00010446,2]
[398565270,1765834238904,-500.0,0.00010446,2]
[398565271,1765834238915,-500.0,0.00010446,2]
[398565272,1765834238925,-500.0,0.00010446,2]
[398565273,1765834238934,-500.0,0.00010446,2]
[398565274,1765834238946,-500.0,0.00010446,2]
[398565275,1765834238955,-500.0,0.00010446,2]
[398565276,1765834238964,-500.0,0.00010446,2]
[398565277,1765834238979,-500.0,0.00010446,2]
[398565278,1765834238989,-593.59023617,0.00010446,2]
[398565279,1765834238999,-500.0,0.00010446,2]
[398565280,1765834239008,-285.05143503,0.00010446,2]
[398565281,1765834239017,-500.0,0.00010446,2]
[398565282,1765834239027,-500.0,0.00010446,2]
[398565283,1765834239036,-500.0,0.00010446,2]
[398565284,1765834239046,-500.0,0.00010446,2]
[398565285,1765834239056,-500.0,0.00010446,2]
[398565287,1765834239065,-500.0,0.00010446,2]
[398565288,1765834239075,-500.0,0.00010446,2]
[398565290,1765834239085,-500.0,0.00010446,2]
[398565291,1765834239094,-500.0,0.00010446,2]
[398565292,1765834239103,-500.0,0.00010446,2]
[398565294,1765834239112,-500.0,0.00010446,2]
[398565296,1765834239121,-500.0,0.00010446,2]
[398565297,1765834239132,-500.0,0.00010446,2]
[398565299,1765834239151,-500.0,0.00010446,2]
[398565300,1765834239162,-500.0,0.00010446,2]
[398565302,1765834239172,-500.0,0.00010446,2]
[398565304,1765834239181,-369.99901182,0.00010446,2]
[398565306,1765834239191,-496.66133372,0.00010446,2]
[398565308,1765834239201,-23614.67184239,0.00010447,2]
[398565310,1765834239211,-265.6380343,0.00010448,2]
[398565312,1765834239220,-500.0,0.00010448,2]
[398565314,1765834239230,-1532.67708684,0.0001045,2]
[398565347,1765834239546,-1676.412,0.0001045,2]
[398565385,1765834240355,-29154.00548739,0.0001045,2]
[398565388,1765834240374,-315.544,0.0001045,2]
[398565555,1765834243422,-388.51668446,0.0001045,2]
[398565601,1765834384467,150.0,7.362e-05,2]
[398565602,1765834384596,150.0,8.031e-05,2]
[398565603,1765834384959,150.0,8.7e-05,2]
[398565604,1765834385656,150.0,9.369e-05,2]
[398565605,1765834385852,150.0,0.00010039,2]
[398565610,1765834768547,150.0,7.349e-05,2]
[398565613,1765835022730,163.77565631,9.64e-05,2]
[398565616,1765835249408,2000.0,0.0001015,2]
[398565617,1765835252106,-1200.0,0.00010347,2]
[398565618,1765835252126,-300.0,0.00010347,2]
[398565619,1765835252146,-1200.0,0.00010348,2]
[398565620,1765835252164,-300.0,0.00010348,2]
[398565621,1765835252185,-300.0,0.00010348,2]
[398565622,1765835252204,-300.0,0.00010348,2]
[398565623,1765835252223,-264.34037117,0.00010349,2]
[398565624,1765835252242,-259.44933499,0.00010349,2]
[398565625,1765835252263,-500.0,0.00010349,2]
[398565626,1765835252282,-500.0,0.00010349,2]
[398565627,1765835252301,-371.20697706,0.00010349,2]
[398565628,1765835252320,-510.39891513,0.00010349,2]
[398565629,1765835252340,-500.0,0.00010349,2]
[398565630,1765835252359,-198.33904834,0.00010349,2]
[398565631,1765835252379,-500.0,0.00010349,2]
[398565632,1765835252400,-338.8778415,0.00010349,2]
[398565633,1765835252422,-4842.09364888,0.0001035,2]
[398565635,1765835421254,689.2847519,9.964e-05,2]
[398565670,1765835432306,-300.0,0.00010349,2]
[398565671,1765835432316,-183.47644498,0.00010349,2]
[398565672,1765835432326,-404.52355502,0.00010349,2]
[398565673,1765835432335,-565.0,0.00010349,2]
[398565674,1765835432344,-259.05356374,0.0001035,2]
[398565675,1765835432352,-3754.28125991,0.0001035,2]
[398565749,1765835438265,-13556.69393823,0.0001035,2]
[398565756,1765835438324,-95727.73383031,0.0001035,2]
[398565758,1765835438335,-49296.07995688,0.0001035,2]
[398565780,1765835440501,-1896.47725409,0.0001035,2]
[398565803,1765835443398,-503.675,0.0001035,2]
[398565804,1765835443450,-14411.15966447,0.0001035,2]
[398565807,1765835446732,-614.06000996,0.0001035,2]
[398565817,1765835500166,217.57392107,9.911e-05,2]
[398565819,1765835550373,218.00906891,0.00010074,2]